bitfinex/quotes_ETHUSD_20260103
["timestamp","ask_amount","ask_price","bid_price","bid_amount"]
[1767438212898,5.53011619,3097.6,3097.0,5.30567112]
[1767438213799,2.30178676,3097.6,3097.0,5.30567112]
[1767438216299,2.30178676,3097.6,3097.0,3.2309279]
[1767438216469,5.53013128,3097.6,3097.0,3.2309279]
[1767438217102,2.30178676,3097.5,3097.0,3.2309279]
[1767438218100,2.30178676,3097.5,3097.0,0.002]
[1767438219205,2.30178676,3097.4,3097.0,0.002]
[1767438232829,5.53113719,3097.6,3097.0,0.002]
[1767438233516,2.30278676,3097.6,3097.0,0.002]
[1767438234013,5.53113201,3097.6,3097.0,0.002]
[1767438234919,2.30178676,3097.5,3097.0,0.002]
[1767438241935,2.2835759,3097.4,3097.0,0.002]
[1767438248250,2.2845759,3097.4,3097.0,0.002]
[1767438251956,2.2835759,3097.3,3097.0,0.002]
[1767438286790,0.55131107,3097.2,3097.0,0.002]
[1767438286962,2.44127041,3097.2,3096.7,0.0008008]
[1767438288674,2.44127041,3097.2,3097.0,0.002]
[1767438291196,5.66999477,3097.2,3097.0,0.002]
[1767438301702,5.67099477,3097.2,3097.0,0.002]
[1767438301903,0.88996142,3097.1,3097.0,0.002]
[1767438302877,0.001,3097.2,3097.0,0.002]
[1767438303276,0.001,3097.4,3097.0,0.002]
[1767438311924,0.001,3097.4,3097.0,2.07674322]
[1767438312627,0.001,3097.4,3097.0,5.30563787]
[1767438313024,0.001,3097.4,3097.0,3.23089465]
[1767438313232,0.001,3097.4,3097.0,0.002]
[1767438313828,2.44702609,3097.4,3097.0,0.002]
[1767438316139,5.67557289,3097.4,3097.0,0.002]
[1767438317327,2.44602609,3097.3,3097.0,0.002]
[1767438317532,2.96379082,3097.3,3097.0,0.002]
[1767438318023,2.44602609,3097.3,3097.0,0.002]
[1767438320830,2.44602609,3097.2,3096.7,0.0008008]
[1767438322108,2.44602609,3097.1,3096.7,0.0008008]
[1767438325251,2.44602609,3097.0,3096.7,0.0008008]
[1767438333766,2.40244965,3096.9,3096.7,0.0008008]
[1767438335978,5.63131115,3097.1,3096.7,0.0008008]
[1767438337407,2.40244965,3097.1,3096.7,0.0008008]
[1767438337676,3.22875849,3097.2,3096.7,0.0008008]
[1767438340279,5.63210905,3097.3,3096.7,0.0008008]
[1767438340767,0.001,3097.3,3096.7,2.07554402]
[1767438343954,0.001,3097.3,3096.7,5.30477613]
[1767438344154,0.001,3097.3,3096.8,2.07474322]
[1767438347788,2.40344965,3097.3,3096.7,0.0008008]
[1767438350866,5.63207791,3097.3,3096.7,0.0008008]
[1767438370925,3.22962826,3097.3,3096.7,2.07554402]
[1767438373536,0.001,3097.3,3096.7,2.07554402]
[1767438374836,0.001,3097.3,3096.8,2.07474322]
[1767438380316,3.44060644,3097.3,3096.7,0.0008008]
[1767438380948,3.44060644,3097.3,3096.7,2.07554402]
[1767438384154,3.22872271,3097.2,3096.7,2.07554402]
[1767438390807,5.55336402,3097.2,3096.7,0.0008008]
[1767438391765,3.22872271,3097.2,3096.7,0.0008008]
[1767438392332,4.20591761,3097.2,3096.7,0.0008008]
[1767438395488,2.32464131,3097.1,3096.7,0.0008008]
[1767438395674,2.32464131,3097.1,3096.3,0.002]
[1767438395675,2.32544211,3097.1,3096.3,0.002]
[1767438396075,2.32544211,3097.1,3096.6,0.002]
[1767438396243,2.32464131,3096.7,3096.3,0.002]
[1767438396783,2.32464131,3096.7,3096.2,0.00080088]
[1767438397169,2.32464131,3096.6,3095.9,0.00080096]
[1767438397374,2.32544219,3096.6,3095.9,0.00080096]
[1767438397753,2.32464131,3096.4,3095.9,0.00080096]
[1767438398084,2.64200544,3096.3,3095.9,0.00080096]
[1767438398253,5.87175229,3096.3,3095.9,0.00080096]
[1767438399873,2.64200544,3096.3,3095.9,0.00080096]
[1767438400274,5.87167451,3096.3,3095.9,0.00080096]
[1767438403599,5.87167451,3096.3,3095.9,0.00280096]
[1767438405273,0.92305031,3096.2,3095.9,0.00280096]
[1767438406207,0.92305031,3096.2,3095.7,0.002]
[1767438406208,3.24769162,3096.2,3095.7,0.002]
[1767438406499,5.55451114,3096.1,3095.6,0.002]
[1767438406852,2.32464131,3096.0,3095.6,0.002]
[1767438408385,3.23007849,3095.9,3095.6,0.002]
[1767438408554,0.89138435,3095.9,3095.6,0.002]
[1767438410659,6.44612392,3095.9,3095.5,0.002]
[1767438410973,2.32464131,3095.8,3095.5,0.002]
[1767438411158,2.32464131,3095.8,3095.4,0.002]
[1767438411488,2.32464131,3095.6,3095.4,0.002]
[1767438412591,0.96762222,3095.7,3095.4,0.002]
[1767438412756,2.4539006,3096.0,3095.5,0.002]
[1767438413322,2.32464131,3096.0,3095.5,0.002]
[1767438413663,4.20613476,3096.1,3095.5,0.002]
[1767438413859,4.20613476,3096.1,3095.5,2.07674322]
[1767438414063,0.65307761,3096.0,3095.5,2.07674322]
[1767438415198,3.8830662,3096.0,3095.5,2.07674322]
[1767438418803,6.20770751,3096.0,3095.5,0.002]
[1767438419107,2.97771892,3096.0,3095.5,0.002]
[1767438420204,3.35906138,3096.2,3095.5,2.07674322]
[1767438420405,3.22979958,3096.2,3095.5,2.07674322]
[1767438420604,2.40394747,3096.3,3095.5,2.07674322]
[1767438420605,3.23050915,3096.3,3095.5,2.07674322]
[1767438421009,0.00080096,3096.3,3095.7,2.07474322]
[1767438424080,0.00080096,3096.3,3095.7,5.305003]
[1767438425119,0.00080096,3096.3,3095.8,2.07474322]
[1767438426235,0.00080096,3096.3,3095.9,3.23007849]
[1767438427237,0.00080096,3096.3,3096.0,2.07474322]
[1767438427530,0.00080096,3096.3,3095.9,6.46015698]
[1767438427531,0.00080088,3096.6,3096.2,2.07474322]
[1767438427936,0.00080088,3096.6,3096.0,2.07394226]
[1767438428131,2.40394739,3096.6,3096.1,3.22986983]
[1767438429138,0.001,3096.3,3096.1,3.22986983]
[1767438429315,0.001,3096.3,3095.9,0.00080104]
[1767438429934,2.40414651,3096.3,3095.9,0.00080104]
[1767438437258,0.00080088,3096.6,3096.1,2.07394226]
[1767438437463,0.00080088,3096.6,3096.0,2.73267178]
[1767438437464,2.40394731,3097.1,3096.3,2.07394226]
[1767438437751,2.40394731,3097.1,3096.4,2.07394226]
[1767438439739,2.40394731,3097.1,3096.5,3.2294526]
[1767438443466,2.40394731,3097.1,3096.4,3.22954322]
[1767438443766,2.40394731,3097.1,3096.5,0.73061005]
[1767438443968,2.40494731,3097.1,3096.5,0.73061005]
[1767438446361,2.40314651,3097.0,3096.5,3.95998839]
[1767438453842,2.40314651,3097.0,3096.5,3.96198839]
[1767438454043,2.40314651,3097.0,3096.5,0.73261005]
[1767438454243,2.40314651,3097.0,3096.5,0.002]
[1767438455167,2.40314651,3097.0,3096.5,3.23144824]
[1767438456082,2.40314651,3097.0,3096.5,0.002]
[1767438456271,2.40314651,3097.0,3096.2,0.00080096]
[1767438456272,2.42909008,3096.9,3096.2,0.00080096]
[1767438456473,6.45793506,3097.0,3096.2,0.00080096]
[1767438456474,2.42909008,3096.7,3096.2,0.00080096]
[1767438459783,2.42909008,3096.6,3096.2,0.00080096]
[1767438463186,2.42909008,3096.8,3096.2,2.07674322]
[1767438463489,0.0018008,3097.1,3096.2,2.07674322]
[1767438463671,0.0018008,3097.1,3096.4,2.07594226]
[1767438464067,0.0018008,3097.1,3096.5,3.2294526]
[1767438464772,2.43089088,3097.1,3096.5,3.2294526]
[1767438465797,2.43089088,3097.1,3096.4,5.30546996]
[1767438466097,5.65979978,3097.1,3096.4,5.30546996]
[1767438466274,2.42909008,3097.0,3096.4,2.07594226]
[1767438466474,2.42909008,3097.0,3096.3,3.22961204]
[1767438467493,2.42909008,3097.0,3096.2,0.00080096]
[1767438467694,2.42909008,3097.0,3096.3,3.22963631]
[1767438469194,2.42909008,3096.9,3096.2,3.23056647]
[1767438469397,2.42909008,3096.8,3096.2,3.23056647]
[1767438469570,2.42909008,3096.8,3096.2,0.00080096]
[1767438470673,2.42909008,3096.7,3096.2,0.00080096]
[1767438472415,2.42909008,3096.6,3096.2,0.00080096]
[1767438472991,3.40687686,3096.9,3096.2,2.07674322]
[1767438473196,2.42909008,3096.9,3096.2,2.07674322]
[1767438475206,2.42909008,3096.9,3096.2,5.30641175]
[1767438476905,2.42909008,3096.9,3096.3,2.07594226]
[1767438477111,5.65813619,3096.9,3096.3,2.07594226]
[1767438478015,2.42909008,3096.8,3096.2,0.00080096]
[1767438479515,2.99499221,3096.8,3096.2,0.00080096]
[1767438479726,2.42888893,3096.7,3096.2,0.00080096]
[1767438480403,2.42888893,3096.6,3096.2,0.00080096]
[1767438481580,2.42888893,3096.4,3096.2,0.00080096]
[1767438481986,3.2294526,3096.5,3096.2,0.00080096]
[1767438482287,5.65828684,3096.6,3096.2,0.00080096]
[1767438482483,2.42888893,3096.5,3096.2,0.00080096]
[1767438483919,8.88795635,3096.5,3096.2,0.00080096]
[1767438484223,5.65842264,3096.5,3096.2,0.00080096]
[1767438486222,5.65842264,3096.5,3095.9,0.00080104]
[1767438486223,2.42888893,3096.4,3095.9,0.00080104]
[1767438486436,2.42888893,3096.2,3095.9,0.00080104]
[1767438487726,2.42888893,3096.4,3095.9,0.00080104]
[1767438489024,5.65853059,3096.4,3095.9,0.00080104]
[1767438489717,2.42888893,3096.3,3095.9,0.00080104]
[1767438490424,2.42888893,3096.3,3095.9,0.00280104]
[1767438490628,2.99474199,3096.3,3095.9,0.00280104]
[1767438499241,6.22442269,3096.3,3095.9,0.00280104]
[1767438503353,2.42888893,3096.2,3095.9,0.00280104]
[1767438504434,0.56585306,3096.3,3095.9,0.00280104]
[1767438511017,2.91116647,3096.3,3095.9,0.00280104]
[1767438516260,6.14084316,3096.3,3095.9,0.00280104]
[1767438516620,2.91116647,3096.3,3095.9,0.00280104]
[1767438518168,2.91216647,3096.3,3095.9,0.00280104]
[1767438524471,0.61417519,3096.2,3095.9,0.00280104]
[1767438526464,2.34631341,3096.3,3095.9,0.00280104]
[1767438534585,3.23068731,3096.3,3095.9,0.00280104]
[1767438534877,2.34531341,3096.2,3095.9,0.00280104]
[1767438537794,3.23068731,3096.3,3095.9,0.00280104]
[1767438538594,2.34631341,3096.3,3095.9,0.00280104]
[1767438538795,2.58104475,3096.3,3095.9,0.00280104]
[1767438544299,0.23573134,3096.3,3095.9,0.00280104]
[1767438544599,0.001,3096.3,3095.9,0.00280104]
[1767438546692,2.38471325,3096.3,3095.9,0.00280104]
[1767438556678,2.38371325,3096.2,3095.9,0.00280104]
[1767438560118,2.38371325,3096.0,3095.4,0.002]
[1767438560410,2.73267647,3096.1,3095.4,0.002]
[1767438560411,2.38371325,3095.8,3095.4,0.002]
[1767438565417,2.38371325,3095.7,3095.2,0.002]
[1767438565589,0.0008008,3095.3,3094.9,0.00053384]
[1767438566190,0.0008008,3095.3,3094.9,3.23164944]
[1767438567302,0.0008008,3095.3,3094.9,0.00053384]
[1767438572706,0.0008008,3095.3,3094.9,2.08527698]
[1767438572904,0.0008008,3095.3,3094.9,2.94004999]
[1767438575940,0.0008008,3095.3,3095.0,3.23101777]
[1767438576605,0.0008008,3095.3,3095.0,6.46203554]
[1767438576806,0.00080088,3095.7,3095.1,2.08474314]
[1767438578134,0.00080088,3095.7,3095.2,3.23080899]
[1767438578513,2.27960462,3095.4,3094.6,3.23336672]
[1767438578713,2.27960462,3095.2,3094.6,0.002]
[1767438578940,2.27960462,3095.2,3094.6,3.23336792]
[1767438579435,2.27960462,3095.2,3094.7,3.23132471]
[1767438579632,0.00080088,3095.3,3094.7,2.08474314]
[1767438579813,0.00080088,3095.3,3094.8,0.20867431]
[1767438580335,0.00080088,3095.3,3094.9,2.08474314]
[1767438581620,2.2804055,3095.3,3094.6,0.002]
[1767438582041,2.2804055,3095.3,3094.6,3.23337339]
[1767438582417,5.51120161,3095.3,3094.6,0.002]
[1767438582620,2.27960462,3095.2,3094.6,0.85718969]
[1767438583549,5.5104337,3095.2,3094.6,4.08861747]
[1767438584752,2.27960462,3095.2,3094.6,4.08861747]
[1767438585457,3.23154865,3095.3,3094.8,5.31596971]
[1767438585458,0.00080088,3095.3,3094.8,5.31596971]
[1767438585612,0.00080088,3095.3,3094.9,2.08474314]
[1767438585816,0.00080088,3095.3,3094.9,2.93947083]
[1767438586088,0.00080088,3095.3,3095.0,2.08474314]
[1767438591431,0.00180088,3095.3,3095.0,2.08474314]
[1767438596550,0.00180088,3095.3,3095.0,2.07602622]
[1767438601840,0.00180088,3095.3,3094.9,0.85672769]
[1767438602960,0.00180088,3095.3,3094.9,4.08781976]
[1767438603252,0.00180088,3095.3,3095.0,0.6163846]
[1767438604863,0.00180088,3095.3,3095.0,3.84738471]
[1767438605252,0.00180088,3095.3,3095.0,5.92341093]
[1767438607071,0.00080088,3095.7,3095.2,2.73267647]
[1767438607285,0.00080088,3095.7,3095.2,5.67431143]
[1767438607454,0.001,3096.2,3095.3,2.07602622]
[1767438607642,0.001,3096.2,3095.6,2.4861856]
[1767438608684,5.64165311,3096.2,3095.6,2.4861856]
[1767438610074,5.64165311,3096.2,3095.5,3.23049588]
[1767438610381,5.64165311,3096.2,3095.5,4.21010482]
[1767438610544,2.41186842,3096.2,3095.5,4.21010482]
[1767438611383,2.41086842,3096.1,3095.5,4.21010482]
[1767438615699,2.41186842,3096.1,3095.5,4.21010482]
[1767438616901,2.41186842,3096.1,3095.0,0.002]
[1767438617090,2.41086842,3095.6,3095.0,0.002]
[1767438617293,2.41086842,3095.4,3095.0,0.002]
[1767438617990,2.41086842,3095.6,3095.0,2.4881856]
[1767438618896,3.23049588,3095.5,3095.0,2.4881856]
[1767438620371,3.23049588,3095.5,3095.0,0.002]
[1767438620772,5.6413643,3095.5,3095.0,0.002]
[1767438624896,5.6423643,3095.5,3095.0,0.002]
[1767438625298,6.52972114,3095.5,3095.0,0.002]
[1767438625598,2.41086842,3095.4,3095.0,0.002]
[1767438626210,2.41086842,3095.2,3095.0,0.002]
[1767438628581,5.64170632,3095.2,3095.0,0.002]
[1767438628807,2.41086842,3095.1,3095.0,0.002]
[1767438628977,2.41086842,3095.0,3094.6,0.002]
[1767438631497,3.23112216,3094.9,3094.6,0.002]
[1767438632702,5.64190775,3095.0,3094.6,0.002]
[1767438635795,2.42453444,3094.9,3094.6,0.002]
[1767438636000,2.42453444,3094.9,3094.5,1e-08]
[1767438636330,2.99009182,3094.8,3094.5,1e-08]
[1767438638732,2.42453444,3094.7,3094.4,0.002]
[1767438639307,2.42453444,3094.7,3093.7,3.24239227]
[1767438639308,2.42453444,3094.5,3093.7,0.90030166]
[1767438640631,2.42453444,3094.3,3093.7,0.90030166]
[1767438643034,2.42453444,3094.1,3093.7,0.90030166]
[1767438643334,3.31335851,3094.0,3093.7,0.90030166]
[1767438643531,6.46370628,3094.2,3093.7,2.34209062]
[1767438643532,3.23185314,3094.2,3093.7,2.34209062]
[1767438643715,0.00080096,3094.1,3093.7,2.34209062]
[1767438644313,0.00080096,3094.1,3093.9,2.34209061]
[1767438645327,0.00080096,3094.1,3093.8,0.848]
[1767438646617,2.4253354,3094.1,3093.6,0.002]
[1767438646817,2.42453444,3093.9,3093.6,0.002]
[1767438647143,5.65673656,3093.9,3093.6,0.002]
[1767438647315,5.65673656,3093.9,3093.4,0.002]
[1767438647316,8.88893868,3093.9,3093.4,0.002]
[1767438647828,2.42453444,3093.8,3093.4,0.002]
[1767438648418,3.23220212,3093.9,3093.4,0.002]
[1767438648613,4.14540653,3093.9,3093.4,0.002]
[1767438649742,3.23210749,3094.0,3093.4,2.34409061]
[1767438650760,3.23210749,3094.0,3093.8,0.002]
[1767438651744,0.00080096,3094.1,3093.8,0.002]
[1767438660271,2.41430991,3094.1,3093.8,0.002]
[1767438660475,2.41430991,3094.1,3093.4,0.002]
[1767438660671,2.41350895,3093.9,3093.4,0.002]
[1767438662652,3.23227099,3093.8,3093.4,0.002]
[1767438670758,5.15079683,3093.6,3092.8,0.848]
[1767438671069,3.23227099,3093.8,3093.1,2.47169745]
[1767438671681,6.46443817,3093.9,3093.1,2.47169745]
[1767438671875,7.46135608,3093.9,3093.1,2.47169745]
[1767438672079,4.22910448,3093.9,3093.2,2.47169745]
[1767438672249,7.46135608,3093.9,3093.2,2.47169745]
[1767438679608,4.22910448,3093.9,3093.2,2.47169745]
[1767438679775,3.23308602,3094.0,3093.3,2.47169745]
[1767438680569,3.23308602,3094.0,3093.4,2.47169745]
[1767438681288,6.46517204,3094.0,3093.3,0.848]
[1767438681487,8.87868099,3094.0,3093.3,0.848]
[1767438682185,8.87868099,3094.0,3093.4,2.47169745]
[1767438682792,5.64659497,3094.0,3093.4,2.47169745]
[1767438686094,3.23308602,3094.0,3093.4,2.47169745]
[1767438689067,0.001,3094.0,3093.4,2.47169745]
[1767438689309,0.001,3094.0,3093.6,2.47169745]
[1767438689494,0.00080096,3094.1,3094.0,2.47169745]
[1767438690477,3.23168105,3094.4,3094.0,2.47169745]
[1767438691580,2.4278344,3094.4,3093.7,0.00080104]
[1767438691883,2.73728788,3094.5,3093.7,2.48484596]
[1767438691884,0.56593897,3094.3,3093.7,2.48484596]
[1767438692105,2.4278344,3094.5,3093.7,2.48484596]
[1767438692496,6.4628708,3094.6,3093.7,2.48484596]
[1767438692679,6.4628708,3094.6,3094.0,2.48404492]
[1767438694277,8.8907052,3094.6,3094.0,2.48404492]
[1767438695807,0.00080088,3094.7,3094.0,2.48404492]
[1767438695808,3.23216168,3094.7,3094.0,2.48404492]
[1767438695982,3.23216168,3094.7,3094.1,2.73244941]
[1767438700617,3.23316168,3094.7,3094.1,2.73244941]
[1767438707626,3.23316168,3094.7,3094.1,2.48404492]
[1767438708689,6.46452248,3094.7,3094.1,2.48404492]
[1767438709095,8.89235688,3094.7,3094.0,0.002]
[1767438710622,8.89235688,3094.7,3094.0,2.48604492]
[1767438711725,5.66099608,3094.7,3094.0,2.48604492]
[1767438712727,2.4278344,3094.6,3094.0,0.002]
[1767438713330,3.23153982,3094.5,3094.0,0.002]
[1767438713531,2.4278344,3094.4,3094.0,0.002]
[1767438716031,3.23174869,3094.3,3094.0,0.002]
[1767438716932,5.65958309,3094.3,3094.0,0.002]
[1767438718013,3.23174869,3094.3,3094.0,0.002]
[1767438718421,2.4278344,3094.2,3094.0,0.002]
[1767438718627,3.31695224,3094.2,3093.7,0.84880104]
[1767438719315,2.4278344,3094.1,3093.7,0.84880104]
[1767438720546,2.4278344,3094.1,3093.7,0.00080104]
[1767438720956,5.65980784,3094.1,3093.7,0.00080104]
[1767438722952,4.12101791,3094.2,3093.7,2.44353257]
[1767438723261,3.23153982,3094.5,3093.7,2.44353257]
[1767438723844,8.94319017,3094.5,3093.7,2.44353257]
[1767438725574,6.46310671,3094.5,3093.7,2.44353257]
[1767438727863,6.4638708,3094.6,3093.7,2.44353257]
[1767438728868,8.94395426,3094.6,3093.7,2.44353257]
[1767438729166,0.98349789,3094.5,3093.7,2.44353257]
[1767438730063,3.23164426,3094.4,3093.7,2.44353257]
[1767438731467,6.46328852,3094.4,3093.7,2.44353257]
[1767438731769,3.23164426,3094.4,3093.7,2.44353257]
[1767438732662,6.46328852,3094.4,3093.7,2.44353257]
[1767438732872,7.45607551,3094.4,3093.7,2.44353257]
[1767438733270,4.22443125,3094.4,3093.7,2.44353257]
[1767438735375,3.23157246,3094.5,3093.8,2.44273153]
[1767438738069,3.2324354,3094.6,3093.9,2.44273153]
[1767438738573,6.4638708,3094.6,3093.9,2.44273153]
[1767438738948,3.2324354,3094.6,3093.9,2.44273153]
[1767438740765,3.2324354,3094.6,3094.0,2.44273153]
[1767438741479,0.001,3094.6,3094.1,2.44273153]
[1767438741884,0.001,3094.6,3093.7,0.00080104]
[1767438741885,2.48008346,3094.1,3093.4,1e-08]
[1767438742184,2.48008346,3093.9,3093.4,1e-08]
[1767438742362,2.48008346,3093.7,3093.4,1e-08]
[1767438743550,2.48008346,3093.7,3093.6,0.002]
[1767438743742,2.48008346,3093.7,3093.4,1e-08]
[1767438745085,3.23247995,3093.6,3093.4,1e-08]
[1767438752055,3.23206205,3094.0,3093.4,2.31838432]
[1767438752391,6.4641241,3094.0,3093.4,2.31838432]
[1767438752568,2.49026809,3093.9,3093.4,1e-08]
[1767438753288,6.46454198,3093.8,3093.4,1e-08]
[1767438753589,8.95481007,3093.8,3093.4,1e-08]
[1767438754862,2.49026809,3093.7,3093.4,1e-08]
[1767438755064,0.89548101,3093.6,3093.4,1e-08]
[1767438755472,3.23258445,3093.5,3093.4,1e-08]
[1767438756765,3.23258445,3093.5,3093.1,0.002]
[1767438757711,6.4651689,3093.5,3093.0,3.16411544]
[1767438760201,6.4651689,3093.5,3093.0,3.16611544]
[1767438760503,7.4502607,3093.5,3093.0,3.16611544]
[1767438761065,7.4502607,3093.5,3093.0,0.85]
[1767438762886,9.74756826,3093.5,3093.0,0.85]
[1767438768205,2.29730756,3093.4,3093.0,0.85]
[1767438770675,3.23279345,3093.3,3093.0,0.85]
[1767438772288,2.29730756,3093.3,3093.0,0.85]
[1767438772708,2.29730756,3093.3,3092.7,2.2602601]
[1767438772912,6.46537908,3093.4,3092.7,2.2602601]
[1767438774224,8.76268664,3093.4,3092.7,2.2602601]
[1767438774514,10.06081611,3093.4,3092.7,2.2602601]
[1767438776929,2.29730756,3093.3,3092.7,2.2602601]
[1767438778512,6.46579592,3093.2,3092.7,2.2602601]
[1767438780416,3.23289796,3093.2,3092.7,2.2602601]
[1767438780616,6.4651689,3093.5,3092.7,2.2602601]
[1767438780819,0.96109953,3093.4,3092.7,2.2602601]
[1767438781015,3.23258445,3093.5,3092.8,2.43582789]
[1767438781368,6.4651689,3093.5,3092.8,2.43582789]
[1767438781614,0.001,3093.6,3092.8,2.43582789]
[1767438781615,3.23352644,3093.6,3092.8,2.43582789]
[1767438782019,0.001,3093.6,3092.8,2.43582789]
[1767438782720,0.001,3093.6,3093.0,2.43582789]
[1767438782920,0.001,3093.6,3093.2,2.43582789]
[1767438786207,0.001,3093.5,3093.2,2.43582789]
[1767438792622,0.001,3093.6,3093.3,2.43582789]
[1767438810681,0.001,3093.6,3093.3,2.43782789]
[1767438816685,3.23210528,3094.0,3093.4,2.25663241]
[1767438816890,3.23210528,3094.0,3093.5,2.25663241]
[1767438818287,0.00080104,3094.1,3093.5,2.25663241]
[1767438819687,0.001,3093.6,3093.5,2.25663241]
[1767438822472,0.001,3093.6,3093.3,2.25863241]
[1767438829586,0.001,3093.6,3093.3,0.002]
[1767438831182,0.001,3093.6,3093.3,0.46698565]
[1767438833502,0.001,3093.6,3093.3,0.002]
[1767438840020,0.001,3093.6,3093.3,2.35351152]
[1767438844291,0.001,3093.6,3093.4,2.35151152]
[1767438854152,5.67147492,3094.1,3093.5,2.35151152]
[1767438856480,0.00080104,3094.1,3093.5,2.91013792]
[1767438856636,0.00080104,3094.1,3093.6,2.35151152]
[1767438857336,0.00080104,3094.1,3093.7,2.35151152]
[1767438858436,0.00080104,3094.1,3093.9,2.35151152]
[1767438859944,0.00180104,3094.1,3093.9,2.35151152]
[1767438864252,0.00180104,3094.1,3093.7,2.35151152]
[1767438864415,0.00180104,3094.1,3093.7,2.99470662]
[1767438872258,0.00180104,3094.1,3093.7,0.6431951]
[1767438872464,2.25524895,3094.1,3093.7,0.6431951]
[1767438875069,2.25524895,3094.1,3093.7,3.87553498]
[1767438877552,0.00180104,3094.1,3093.7,6.23149881]
[1767438877859,0.00180104,3094.1,3093.8,3.06391371]
[1767438879962,0.00180104,3094.1,3093.9,2.35596383]
[1767438886583,0.00180104,3094.1,3093.8,0.70794988]
[1767438890605,0.00180104,3094.1,3093.7,2.35596383]
[1767438895977,0.00180104,3094.1,3093.7,5.58832347]
[1767438896192,0.00180104,3094.1,3093.8,2.35596383]
[1767438898004,3.23237919,3094.5,3093.8,2.35596383]
[1767438899212,3.23237919,3094.5,3093.9,2.35596383]
[1767438902609,6.46394449,3094.5,3093.9,2.35596383]
[1767438902810,2.29816156,3094.4,3093.7,3.23313401]
[1767438903007,2.29816156,3094.4,3093.7,3.96470505]
[1767438903310,6.46394449,3094.5,3093.8,2.35692992]
[1767438904210,2.29897545,3094.5,3093.8,2.35692992]
[1767438908415,3.23164426,3094.4,3093.8,5.58919798]
[1767438908710,3.23164426,3094.4,3093.8,2.35692992]
[1767438909518,3.23164426,3094.4,3093.8,5.58919235]
[1767438909819,3.23164426,3094.4,3093.8,2.35692992]
[1767438911184,3.23164426,3094.4,3093.8,2.35892992]
[1767438914506,6.46328852,3094.4,3093.8,2.35892992]
[1767438915233,3.23164426,3094.4,3093.8,2.35892992]
[1767438916558,6.46328852,3094.4,3093.8,2.35892992]
[1767438921038,3.23164426,3094.4,3093.8,2.35892992]
[1767438921845,8.76145008,3094.4,3093.8,2.35892992]
[1767438922011,8.76145008,3094.4,3093.8,0.002]
[1767438923239,2.29816156,3094.3,3093.8,0.002]
[1767438925127,3.23185314,3094.2,3093.8,0.002]
[1767438925437,2.29816156,3094.1,3093.8,0.002]
[1767438927543,3.23206205,3094.0,3093.8,0.002]
[1767438929246,2.29816156,3094.0,3093.8,0.002]
[1767438931419,5.53031477,3094.0,3093.8,0.002]
[1767438933328,6.40654309,3094.0,3093.8,0.002]
[1767438934637,9.6386963,3094.0,3093.8,0.002]
[1767438934838,6.40654309,3094.0,3093.8,0.002]
[1767438935049,2.46268385,3093.9,3093.7,0.00080112]
[1767438935251,0.98032186,3093.8,3093.7,0.00080112]
[1767438937521,3.23227099,3093.8,3093.7,0.00080112]
[1767438939750,6.46454198,3093.8,3093.5,0.002]
[1767438939950,3.23227099,3093.8,3093.5,0.002]
[1767438943452,6.46454198,3093.8,3093.5,0.002]
[1767438943652,7.44488739,3093.8,3093.5,0.002]
[1767438944060,7.44488739,3093.8,3093.4,1e-08]
[1767438944253,9.90757124,3093.8,3093.4,1e-08]
[1767438945540,2.46268385,3093.7,3093.4,1e-08]
[1767438945871,4.2126164,3093.8,3093.4,1e-08]
[1767438946057,0.74448146,3093.7,3093.4,1e-08]
[1767438946857,3.9769609,3093.7,3093.4,1e-08]
[1767438948737,0.74448146,3093.7,3093.4,1e-08]
[1767438948935,3.23231938,3093.8,3093.4,1e-08]
[1767438949162,3.23231938,3093.8,3093.4,2.32412315]
[1767438949366,3.2321016,3094.0,3093.4,2.32412315]
[1767438950151,0.00080112,3094.1,3093.4,2.32412315]
[1767438950340,0.89352025,3094.1,3093.4,2.32412315]
[1767438951774,3.23206205,3094.0,3093.4,2.32412315]
[1767438952873,6.4641241,3094.0,3093.4,2.32412315]
[1767438961471,3.23376772,3094.1,3093.5,2.33786433]
[1767438961682,0.001,3094.0,3093.5,2.33786433]
[1767438964084,0.001,3094.0,3093.6,2.33786433]
[1767438968755,0.001,3094.0,3093.7,2.33786433]
[1767438972197,0.001,3094.0,3093.7,3.2323646]
[1767438972398,0.001,3094.0,3093.7,5.57022893]
[1767438973166,0.001,3094.0,3093.8,2.33786433]
[1767438975383,0.00180112,3094.1,3093.9,2.33786433]
[1767438979314,0.00180112,3094.1,3093.5,2.89511948]
[1767438981487,0.00180112,3094.1,3093.5,3.74311948]
[1767438982505,6.4641241,3094.0,3093.5,1.40525515]
[1767438983103,6.4641241,3094.0,3093.5,3.74311948]
[1767438983308,6.4641241,3094.0,3093.5,3.18586433]
[1767438984211,6.4641241,3094.0,3093.4,1e-08]
[1767438984212,2.31418428,3093.9,3093.4,1e-08]
[1767438984384,2.31418428,3093.7,3093.4,1e-08]
[1767438984988,3.23227099,3093.8,3093.4,1e-08]
[1767438985812,5.54645527,3093.8,3093.4,1e-08]
[1767438986312,3.23227099,3093.8,3093.4,1e-08]
[1767438986508,0.001,3094.0,3093.4,1e-08]
[1767438991722,6.4651241,3094.0,3093.4,1e-08]
[1767438992514,8.90577359,3094.0,3093.4,1e-08]
[1767438992715,6.4651241,3094.0,3093.4,1e-08]
[1767438993026,2.44064949,3093.9,3093.4,1e-08]
[1767438993407,2.44064949,3093.8,3093.4,1e-08]
[1767438994019,3.23237547,3093.7,3093.4,1e-08]
[1767438996224,3.23227099,3093.8,3093.4,1e-08]
[1767439001031,3.23216652,3093.9,3093.4,1e-08]
[1767439002834,2.44064949,3093.8,3093.4,1e-08]
[1767439006832,5.67301024,3093.8,3093.4,1e-08]
[1767439007035,3.23236075,3093.8,3093.4,2.44453189]
[1767439008242,3.23216652,3093.9,3093.4,2.44453189]
[1767439008607,6.46433304,3093.9,3093.4,2.44453189]
[1767439011541,2.44064949,3093.8,3093.4,1e-08]
[1767439013142,3.23237547,3093.7,3093.4,1e-08]
[1767439019543,2.44064949,3093.8,3093.4,1e-08]
[1767439019544,3.23231412,3093.8,3093.4,1e-08]
[1767439019715,4.12292588,3093.8,3093.4,1e-08]
[1767439020743,5.67380351,3094.0,3093.4,1e-08]
[1767439020744,3.23219901,3093.9,3093.4,1e-08]
[1767439021845,3.23219901,3093.9,3093.4,2.35160224]
[1767439025979,0.001,3094.0,3093.4,2.35160224]
[1767439031392,2.40636475,3094.0,3093.4,2.35160224]
[1767439031787,3.23216652,3093.9,3093.4,2.35160224]
[1767439032186,6.46433304,3093.9,3093.4,2.35160224]